[Event "Late-Titled-Tuesday-Blitz-March-12-2024"]
[Site "Chess.com"]
[Date "2024.03.12"]
[Round "6"]
[White "ChessLover0108"]
[Black "mac0504"]
[Result "1-0"]
[WhiteElo "2950"]
[BlackElo "2718"]
[TimeControl "180+1"]
[EndTime "15:05:36 PDT"]
[Termination "ChessLover0108 won on time"]

1. c4 {[%clk 0:03:00.9]} 1... g6 {[%clk 0:02:59.6]} 2. Nc3 {[%clk 0:02:51.2]}
2... Bg7 {[%clk 0:03:00.2]} 3. d4 {[%clk 0:02:51.9]} 3... d6 {[%clk 0:03:00.7]}
4. e4 {[%clk 0:02:52.5]} 4... Nd7 {[%clk 0:03:01.2]} 5. Be2 {[%clk 0:02:52.6]}
5... Ngf6 {[%clk 0:03:00.6]} 6. Nf3 {[%clk 0:02:52.7]} 6... O-O {[%clk
0:03:01.3]} 7. O-O {[%clk 0:02:53.4]} 7... e5 {[%clk 0:03:01.8]} 8. Be3 {[%clk
0:02:54.3]} 8... h6 {[%clk 0:02:53.2]} 9. h3 {[%clk 0:02:35.3]} 9... Qe7 {[%clk
0:02:46.8]} 10. Qc2 {[%clk 0:02:10.7]} 10... c6 {[%clk 0:02:39.3]} 11. Rad1
{[%clk 0:02:03.3]} 11... exd4 {[%clk 0:02:35.5]} 12. Nxd4 {[%clk 0:02:04.2]}
12... Nc5 {[%clk 0:02:35.8]} 13. Bf3 {[%clk 0:02:01.8]} 13... Nfd7 {[%clk
0:02:34.3]} 14. b3 {[%clk 0:01:57]} 14... Re8 {[%clk 0:02:29.6]} 15. Rfe1 {[%clk
0:01:56]} 15... a5 {[%clk 0:02:28.5]} 16. g3 {[%clk 0:01:55.1]} 16... Nf8 {[%clk
0:02:05.8]} 17. Bg2 {[%clk 0:01:51.8]} 17... Nfe6 {[%clk 0:02:05.7]} 18. Nde2
{[%clk 0:01:41.5]} 18... Ng5 {[%clk 0:02:03.3]} 19. Kh2 {[%clk 0:01:36.1]} 19...
Ngxe4 {[%clk 0:01:42.4]} 20. Nxe4 {[%clk 0:01:34.2]} 20... Nxe4 {[%clk
0:01:42.5]} 21. Nd4 {[%clk 0:01:35.1]} 21... Nf6 {[%clk 0:01:28.1]} 22. Bxh6
{[%clk 0:01:32.3]} 22... Qxe1 {[%clk 0:01:19.8]} 23. Rxe1 {[%clk 0:01:33.2]}
23... Rxe1 {[%clk 0:01:20.1]} 24. Bxg7 {[%clk 0:01:33.8]} 24... Kxg7 {[%clk
0:01:20.7]} 25. Qc3 {[%clk 0:01:34.6]} 25... Re5 {[%clk 0:01:17]} 26. g4 {[%clk
0:01:30.3]} 26... Bxg4 {[%clk 0:01:05]} 27. hxg4 {[%clk 0:01:16.9]} 27... Nxg4+
{[%clk 0:01:05.9]} 28. Kg1 {[%clk 0:01:17.6]} 28... Nf6 {[%clk 0:01:01.7]} 29.
Nf3 {[%clk 0:01:15.3]} 29... Re2 {[%clk 0:00:56.4]} 30. Nd2 {[%clk 0:00:48.5]}
30... d5 {[%clk 0:00:48.7]} 31. cxd5 {[%clk 0:00:47.5]} 31... cxd5 {[%clk
0:00:49.3]} 32. Bxd5 {[%clk 0:00:44.7]} 32... Rxd2 {[%clk 0:00:38.4]} 33. Qxd2
{[%clk 0:00:43]} 33... Rd8 {[%clk 0:00:39.1]} 34. Qxa5 {[%clk 0:00:43.8]} 34...
Rxd5 {[%clk 0:00:38.8]} 35. Qc3 {[%clk 0:00:43.8]} 35... Rf5 {[%clk 0:00:35.2]}
36. a4 {[%clk 0:00:43.1]} 36... Kg8 {[%clk 0:00:28.3]} 37. Qc8+ {[%clk 0:00:43]}
37... Kg7 {[%clk 0:00:28.5]} 38. Qxb7 {[%clk 0:00:43.9]} 38... Ng4 {[%clk
0:00:28.8]} 39. Qb6 {[%clk 0:00:41.1]} 39... Ne5 {[%clk 0:00:04.2]} 40. a5
{[%clk 0:00:40.6]} 40... Rf6 {[%clk 0:00:04.7]} 41. Qb7 {[%clk 0:00:35.9]} 41...
Nd3 {[%clk 0:00:03]} 42. b4 {[%clk 0:00:27.5]} 42... Nxf2 {[%clk 0:00:01.3]} 43.
a6 {[%clk 0:00:26.6]} 1-0

[Event "Late-Titled-Tuesday-Blitz-March-12-2024"]
[Site "Chess.com"]
[Date "2024.03.12"]
[Round "6"]
[White "remi04"]
[Black "LornerAcosta"]
[Result "1-0"]
[WhiteElo "2894"]
[BlackElo "2622"]
[TimeControl "180+1"]
[EndTime "15:05:38 PDT"]
[Termination "remi04 won by resignation"]

1. e4 {[%clk 0:03:00.9]} 1... c5 {[%clk 0:02:59.1]} 2. Nf3 {[%clk 0:03:01.3]}
2... Nc6 {[%clk 0:02:58.6]} 3. Bb5 {[%clk 0:03:00.8]} 3... e6 {[%clk 0:02:58.3]}
4. O-O {[%clk 0:02:59.8]} 4... Nge7 {[%clk 0:02:57.9]} 5. d4 {[%clk 0:03:00.3]}
5... cxd4 {[%clk 0:02:57.3]} 6. Nxd4 {[%clk 0:03:01.2]} 6... Nxd4 {[%clk
0:02:56.8]} 7. Qxd4 {[%clk 0:03:02.1]} 7... a6 {[%clk 0:02:57]} 8. Bd3 {[%clk
0:03:00.1]} 8... Nc6 {[%clk 0:02:56.6]} 9. Qe3 {[%clk 0:02:59.5]} 9... Qc7
{[%clk 0:02:52.8]} 10. c4 {[%clk 0:02:46.1]} 10... Be7 {[%clk 0:02:34.5]} 11.
Nc3 {[%clk 0:02:42.4]} 11... O-O {[%clk 0:02:31.9]} 12. b3 {[%clk 0:02:40.7]}
12... Ne5 {[%clk 0:02:26.1]} 13. Qg3 {[%clk 0:02:35.6]} 13... Qa5 {[%clk
0:01:57.1]} 14. Be2 {[%clk 0:02:28.6]} 14... f5 {[%clk 0:01:43.6]} 15. exf5
{[%clk 0:02:21.5]} 15... Rxf5 {[%clk 0:01:40.7]} 16. Bb2 {[%clk 0:02:21.4]}
16... d6 {[%clk 0:01:17.4]} 17. Rad1 {[%clk 0:02:20.2]} 17... Qc7 {[%clk
0:01:03.3]} 18. f4 {[%clk 0:02:18.6]} 18... Ng6 {[%clk 0:00:50.6]} 19. Bd3
{[%clk 0:02:18.1]} 19... Rf6 {[%clk 0:00:34.6]} 20. f5 {[%clk 0:01:56.3]} 20...
Ne5 {[%clk 0:00:33.1]} 21. Bb1 {[%clk 0:01:34.1]} 21... Bd7 {[%clk 0:00:32.2]}
22. Qh3 {[%clk 0:01:21.5]} 22... h6 {[%clk 0:00:26.8]} 23. fxe6 {[%clk
0:00:55.8]} 23... Bxe6 {[%clk 0:00:26]} 24. Qe3 {[%clk 0:00:54.4]} 24... Rxf1+
{[%clk 0:00:23.5]} 25. Rxf1 {[%clk 0:00:54.6]} 25... Bg5 {[%clk 0:00:23.8]} 26.
Qe4 {[%clk 0:00:52.9]} 26... g6 {[%clk 0:00:12]} 27. Nd5 {[%clk 0:00:49.2]}
27... Qg7 {[%clk 0:00:06.1]} 28. c5 {[%clk 0:00:47.4]} 28... Re8 {[%clk
0:00:04.1]} 29. cxd6 {[%clk 0:00:45.3]} 29... Bd7 {[%clk 0:00:04.7]} 30. Ne7+
{[%clk 0:00:39.9]} 30... Bxe7 {[%clk 0:00:04]} 31. Qd5+ {[%clk 0:00:33.1]} 31...
Kh7 {[%clk 0:00:01.3]} 32. Bxe5 {[%clk 0:00:31]} 32... Bc6 {[%clk 0:00:01.5]}
33. Qf7 {[%clk 0:00:23.4]} 33... Qxf7 {[%clk 0:00:01.1]} 34. Rxf7+ {[%clk
0:00:24.3]} 34... Kg8 {[%clk 0:00:01.2]} 35. Rxe7 {[%clk 0:00:21.7]} 35... Rxe7
{[%clk 0:00:01.4]} 36. dxe7 {[%clk 0:00:22.6]} 36... Kf7 {[%clk 0:00:01.9]} 37.
Bd6 {[%clk 0:00:22.8]} 37... Ke6 {[%clk 0:00:02.5]} 38. Bxg6 {[%clk 0:00:20.5]}
38... b6 {[%clk 0:00:03.4]} 39. Ba3 {[%clk 0:00:16.2]} 39... a5 {[%clk
0:00:02.8]} 40. e8=Q+ {[%clk 0:00:16.5]} 40... Bxe8 {[%clk 0:00:03.5]} 41. Bxe8
{[%clk 0:00:17.4]} 1-0

[Event "Late-Titled-Tuesday-Blitz-March-12-2024"]
[Site "Chess.com"]
[Date "2024.03.12"]
[Round "6"]
[White "vugarrasulov"]
[Black "KyronGriffith"]
[Result "1-0"]
[WhiteElo "2941"]
[BlackElo "2688"]
[TimeControl "180+1"]
[EndTime "15:05:39 PDT"]
[Termination "vugarrasulov won by resignation"]

1. e4 {[%clk 0:03:00.9]} 1... c5 {[%clk 0:02:58.8]} 2. Nf3 {[%clk 0:03:00.8]}
2... e6 {[%clk 0:02:59.3]} 3. g3 {[%clk 0:03:00.4]} 3... Nc6 {[%clk 0:02:59.1]}
4. Bg2 {[%clk 0:03:00.5]} 4... Nf6 {[%clk 0:02:59.9]} 5. d3 {[%clk 0:02:56.9]}
5... d5 {[%clk 0:02:59.7]} 6. Nbd2 {[%clk 0:02:55.3]} 6... b6 {[%clk 0:02:58.8]}
7. O-O {[%clk 0:02:54.8]} 7... Bb7 {[%clk 0:02:59.4]} 8. Re1 {[%clk 0:02:54.9]}
8... Be7 {[%clk 0:03:00]} 9. a3 {[%clk 0:02:52.6]} 9... O-O {[%clk 0:02:51.6]}
10. e5 {[%clk 0:02:52.5]} 10... Nd7 {[%clk 0:02:51.5]} 11. Nf1 {[%clk
0:02:53.2]} 11... Rc8 {[%clk 0:02:42.8]} 12. h4 {[%clk 0:02:53.2]} 12... Qc7
{[%clk 0:02:36.1]} 13. Bf4 {[%clk 0:02:52]} 13... b5 {[%clk 0:02:16.5]} 14. h5
{[%clk 0:02:50]} 14... a5 {[%clk 0:02:12]} 15. h6 {[%clk 0:02:49.6]} 15... g6
{[%clk 0:02:12.4]} 16. N1h2 {[%clk 0:02:48.8]} 16... d4 {[%clk 0:02:05.4]} 17.
Ng4 {[%clk 0:02:48.1]} 17... Qd8 {[%clk 0:01:57.3]} 18. a4 {[%clk 0:02:46.9]}
18... bxa4 {[%clk 0:01:49.4]} 19. Qd2 {[%clk 0:02:42]} 19... Rb8 {[%clk
0:01:43.3]} 20. Rxa4 {[%clk 0:02:36.9]} 20... Nb6 {[%clk 0:01:39.8]} 21. Raa1
{[%clk 0:02:36.5]} 21... Nd5 {[%clk 0:01:37.4]} 22. Bg5 {[%clk 0:02:36.8]} 22...
Ba8 {[%clk 0:01:29.5]} 23. b3 {[%clk 0:02:36.2]} 23... Bb7 {[%clk 0:01:17.7]}
24. Bxe7 {[%clk 0:02:32.6]} 24... Qxe7 {[%clk 0:01:17.1]} 25. Ng5 {[%clk
0:02:33.1]} 25... Ncb4 {[%clk 0:00:58.2]} 26. Ne4 {[%clk 0:02:29.4]} 26... Ra8
{[%clk 0:00:54.4]} 27. Ngf6+ {[%clk 0:02:24.2]} 27... Nxf6 {[%clk 0:00:48.7]}
28. Nxf6+ {[%clk 0:02:24.5]} 28... Kh8 {[%clk 0:00:48.8]} 29. Bxb7 {[%clk
0:02:20.7]} 29... Qxb7 {[%clk 0:00:49.7]} 30. Ne4 {[%clk 0:02:20.8]} 30... Qe7
{[%clk 0:00:45.2]} 31. Ra4 {[%clk 0:02:17.9]} 31... Nc6 {[%clk 0:00:43.9]} 32.
Qf4 {[%clk 0:02:16.5]} 32... g5 {[%clk 0:00:08.5]} 33. Qxg5 {[%clk 0:02:09.8]}
33... Qxg5 {[%clk 0:00:08.2]} 34. Nxg5 {[%clk 0:02:10.7]} 34... Kg8 {[%clk
0:00:07.7]} 35. Ne4 {[%clk 0:02:10.6]} 35... Nb4 {[%clk 0:00:06.6]} 36. Re2
{[%clk 0:02:08.2]} 36... Rfc8 {[%clk 0:00:06.9]} 37. Nf6+ {[%clk 0:02:06.7]}
37... Kh8 {[%clk 0:00:06.7]} 38. f4 {[%clk 0:02:04.2]} 38... Rc7 {[%clk
0:00:06.9]} 39. Kf2 {[%clk 0:02:02]} 39... Nc6 {[%clk 0:00:07.5]} 40. Kf3 {[%clk
0:01:57.4]} 40... Ne7 {[%clk 0:00:08.1]} 41. g4 {[%clk 0:01:57.3]} 41... Ng8
{[%clk 0:00:08.8]} 42. Nxg8 {[%clk 0:01:55.5]} 42... Kxg8 {[%clk 0:00:08.9]} 43.
Re1 {[%clk 0:01:54.9]} 43... Kf8 {[%clk 0:00:08.9]} 44. Rea1 {[%clk 0:01:54.8]}
44... Rca7 {[%clk 0:00:09.5]} 45. Ke4 {[%clk 0:01:54.6]} 45... Ke7 {[%clk
0:00:09.8]} 46. f5 {[%clk 0:01:55]} 46... Kd7 {[%clk 0:00:10]} 47. fxe6+ {[%clk
0:01:51.4]} 47... fxe6 {[%clk 0:00:10.9]} 48. Rf1 {[%clk 0:01:50.8]} 48... Kc6
{[%clk 0:00:10.9]} 49. Rf6 {[%clk 0:01:50.3]} 49... Re8 {[%clk 0:00:11.5]} 50.
g5 {[%clk 0:01:49.3]} 50... Ree7 {[%clk 0:00:11.4]} 51. Ra1 {[%clk 0:01:47.2]}
51... Kb5 {[%clk 0:00:11.4]} 52. g6 {[%clk 0:01:38]} 52... hxg6 {[%clk
0:00:11.5]} 53. Rxg6 {[%clk 0:01:38.9]} 53... Kb4 {[%clk 0:00:11.9]} 54. Ra4+
{[%clk 0:01:38]} 54... Kb5 {[%clk 0:00:12]} 55. Kf4 {[%clk 0:01:36.8]} 55...
Rf7+ {[%clk 0:00:11.3]} 56. Rf6 {[%clk 0:01:37.3]} 56... Rfe7 {[%clk 0:00:11.6]}
57. Kg5 {[%clk 0:01:37.2]} 57... Ra8 {[%clk 0:00:12.1]} 58. Ra1 {[%clk
0:01:27.4]} 58... Rg8+ {[%clk 0:00:12.2]} 59. Rg6 {[%clk 0:01:20.7]} 59... Rf8
{[%clk 0:00:12.9]} 60. Rg7 {[%clk 0:01:19.6]} 60... Rf5+ {[%clk 0:00:12.2]} 61.
Kg6 {[%clk 0:01:20.1]} 61... Re8 {[%clk 0:00:12.1]} 62. h7 {[%clk 0:01:14.9]}
62... Rf2 {[%clk 0:00:12.5]} 63. Rg1 {[%clk 0:01:11.7]} 63... Rh2 {[%clk
0:00:11.8]} 64. Rg8 {[%clk 0:01:10.2]} 1-0

[Event "Late-Titled-Tuesday-Blitz-March-12-2024"]
[Site "Chess.com"]
[Date "2024.03.12"]
[Round "6"]
[White "Josgar05"]
[Black "KSho99"]
[Result "0-1"]
[WhiteElo "2347"]
[BlackElo "2167"]
[TimeControl "180+1"]
[EndTime "15:05:42 PDT"]
[Termination "KSho99 won by resignation"]

1. Nc3 {[%clk 0:03:00.9]} 1... d5 {[%clk 0:02:55.4]} 2. d4 {[%clk 0:02:56.3]}
2... Nf6 {[%clk 0:02:52.9]} 3. Bf4 {[%clk 0:02:54.9]} 3... c5 {[%clk 0:02:50.9]}
4. e3 {[%clk 0:02:47.8]} 4... cxd4 {[%clk 0:02:50.3]} 5. exd4 {[%clk 0:02:47.1]}
5... a6 {[%clk 0:02:50.4]} 6. Nf3 {[%clk 0:02:44.9]} 6... Nc6 {[%clk 0:02:40.7]}
7. Be2 {[%clk 0:02:24.9]} 7... Bg4 {[%clk 0:02:25.6]} 8. Be3 {[%clk 0:02:02.7]}
8... e6 {[%clk 0:02:23.6]} 9. O-O {[%clk 0:02:00.9]} 9... Bd6 {[%clk 0:02:18.6]}
10. Qd2 {[%clk 0:01:58.8]} 10... Qc7 {[%clk 0:02:15.4]} 11. h3 {[%clk 0:01:54]}
11... Bh5 {[%clk 0:02:05.4]} 12. a3 {[%clk 0:01:52.4]} 12... O-O {[%clk
0:02:03.6]} 13. b4 {[%clk 0:01:49]} 13... Rfc8 {[%clk 0:01:28.5]} 14. Rab1
{[%clk 0:01:47.1]} 14... Nxb4 {[%clk 0:01:22.6]} 15. axb4 {[%clk 0:01:47.1]}
15... Qxc3 {[%clk 0:01:22.1]} 16. Qd1 {[%clk 0:01:47.4]} 16... Qxc2 {[%clk
0:01:17]} 17. Qxc2 {[%clk 0:01:45.8]} 17... Rxc2 {[%clk 0:01:16.5]} 18. Bd3
{[%clk 0:01:46.2]} 18... Rc3 {[%clk 0:01:12]} 19. Be2 {[%clk 0:01:44.5]} 19...
Rac8 {[%clk 0:01:08]} 20. b5 {[%clk 0:01:44]} 20... a5 {[%clk 0:01:07.2]} 21.
Bd2 {[%clk 0:01:41.7]} 21... Rc2 {[%clk 0:00:53.3]} 22. Bd3 {[%clk 0:01:41.6]}
22... Bxf3 {[%clk 0:00:36.6]} 23. Bxc2 {[%clk 0:01:37]} 23... Rxc2 {[%clk
0:00:36.3]} 24. gxf3 {[%clk 0:01:37.1]} 24... Rxd2 {[%clk 0:00:34.2]} 25. Rfc1
{[%clk 0:01:37.2]} 25... g6 {[%clk 0:00:26.2]} 26. Rc8+ {[%clk 0:01:35.1]} 26...
Kg7 {[%clk 0:00:26.1]} 27. Rd8 {[%clk 0:01:35.5]} 27... Bf4 {[%clk 0:00:21.9]}
28. Kg2 {[%clk 0:01:30.7]} 28... Rxd4 {[%clk 0:00:16.5]} 29. Ra1 {[%clk
0:01:29.9]} 29... a4 {[%clk 0:00:15.3]} 30. Ra8 {[%clk 0:01:28.9]} 30... Rb4
{[%clk 0:00:14.7]} 31. R8xa4 {[%clk 0:01:23.2]} 31... Rxa4 {[%clk 0:00:10.4]}
32. Rxa4 {[%clk 0:01:24.1]} 32... g5 {[%clk 0:00:07.8]} 33. Ra7 {[%clk 0:01:24]}
33... d4 {[%clk 0:00:05.8]} 34. Rxb7 {[%clk 0:01:17.6]} 34... d3 {[%clk
0:00:06.2]} 35. Kf1 {[%clk 0:01:17.4]} 35... Nd5 {[%clk 0:00:05.3]} 36. Ra7
{[%clk 0:01:00.1]} 36... d2 {[%clk 0:00:05.1]} 37. Ra1 {[%clk 0:01:00.1]} 37...
Nc3 {[%clk 0:00:05.1]} 38. b6 {[%clk 0:00:56.6]} 38... d1=Q+ {[%clk 0:00:04.9]}
39. Rxd1 {[%clk 0:00:56.9]} 39... Nxd1 {[%clk 0:00:05.7]} 40. b7 {[%clk
0:00:57.5]} 40... Nc3 {[%clk 0:00:05.5]} 41. Ke1 {[%clk 0:00:57.2]} 41... Kf6
{[%clk 0:00:02.8]} 42. Kf1 {[%clk 0:00:55.7]} 42... Ke7 {[%clk 0:00:02.7]} 43.
Ke1 {[%clk 0:00:56.3]} 43... Kd7 {[%clk 0:00:02.4]} 44. Kf1 {[%clk 0:00:57.2]}
44... Kc7 {[%clk 0:00:02.4]} 45. h4 {[%clk 0:00:58.1]} 45... Kxb7 {[%clk
0:00:02.6]} 46. hxg5 {[%clk 0:00:59]} 46... Bxg5 {[%clk 0:00:03]} 47. Kg2 {[%clk
0:00:59.7]} 47... Bf4 {[%clk 0:00:03]} 48. Kh3 {[%clk 0:01:00.6]} 48... Nd5
{[%clk 0:00:03.5]} 49. Kg4 {[%clk 0:01:01.5]} 49... f5+ {[%clk 0:00:03.6]} 50.
Kh5 {[%clk 0:01:02.4]} 50... Kc6 {[%clk 0:00:03.9]} 51. Kh4 {[%clk 0:01:02.3]}
51... Kd6 {[%clk 0:00:04.4]} 52. Kh5 {[%clk 0:01:03.2]} 52... Ke5 {[%clk
0:00:04.8]} 53. Kh4 {[%clk 0:01:03.7]} 53... Kf6 {[%clk 0:00:05.3]} 54. Kh5
{[%clk 0:01:04.6]} 54... Nc7 {[%clk 0:00:04.6]} 55. Kh4 {[%clk 0:01:05.3]} 55...
Ne8 {[%clk 0:00:05.1]} 56. Kh5 {[%clk 0:01:06.2]} 56... Ng7+ {[%clk 0:00:05.4]}
57. Kh4 {[%clk 0:01:06.6]} 57... Kg6 {[%clk 0:00:05.6]} 58. Kh3 {[%clk
0:01:06.7]} 58... Bd6 {[%clk 0:00:04.9]} 59. Kh4 {[%clk 0:01:07.6]} 59... e5
{[%clk 0:00:05.3]} 60. Kh3 {[%clk 0:01:08.3]} 60... Kg5 {[%clk 0:00:04.4]} 61.
Kg3 {[%clk 0:01:08.4]} 61... e4+ {[%clk 0:00:04.5]} 62. Kg2 {[%clk 0:01:09.3]}
62... exf3+ {[%clk 0:00:04.6]} 0-1

[Event "Late-Titled-Tuesday-Blitz-March-12-2024"]
[Site "Chess.com"]
[Date "2024.03.12"]
[Round "6"]
[White "Gryffindorac8"]
[Black "corvachesky"]
[Result "1-0"]
[WhiteElo "2378"]
[BlackElo "2494"]
[TimeControl "180+1"]
[EndTime "15:05:44 PDT"]
[Termination "Gryffindorac8 won by resignation"]

1. d4 {[%clk 0:03:00.9]} 1... d5 {[%clk 0:02:59.5]} 2. c4 {[%clk 0:03:01]} 2...
e6 {[%clk 0:02:57.6]} 3. Nf3 {[%clk 0:03:00.3]} 3... Nf6 {[%clk 0:02:57.7]} 4.
g3 {[%clk 0:03:00.1]} 4... Be7 {[%clk 0:02:56.2]} 5. Bg2 {[%clk 0:03:00.2]} 5...
O-O {[%clk 0:02:54.8]} 6. O-O {[%clk 0:03:00.1]} 6... b6 {[%clk 0:02:54.7]} 7.
cxd5 {[%clk 0:02:59.2]} 7... exd5 {[%clk 0:02:54.9]} 8. Nc3 {[%clk 0:02:58.8]}
8... Bb7 {[%clk 0:02:54.3]} 9. Bf4 {[%clk 0:02:58.2]} 9... c5 {[%clk 0:02:54.1]}
10. dxc5 {[%clk 0:02:57]} 10... bxc5 {[%clk 0:02:53.3]} 11. Qb3 {[%clk
0:02:44.5]} 11... Qb6 {[%clk 0:02:47.7]} 12. Qxb6 {[%clk 0:02:26.7]} 12... axb6
{[%clk 0:02:46.1]} 13. Ne5 {[%clk 0:02:23.6]} 13... Rd8 {[%clk 0:02:36.6]} 14.
Rfd1 {[%clk 0:02:19.5]} 14... Ra7 {[%clk 0:02:33.4]} 15. Nc4 {[%clk 0:02:00.4]}
15... dxc4 {[%clk 0:01:47]} 16. Rxd8+ {[%clk 0:01:54.9]} 16... Bxd8 {[%clk
0:01:47.9]} 17. Bxb8 {[%clk 0:01:49.6]} 17... Ra8 {[%clk 0:01:48.4]} 18. Bxb7
{[%clk 0:01:41.2]} 18... Rxb8 {[%clk 0:01:47.3]} 19. Ba6 {[%clk 0:01:39.6]}
19... Bc7 {[%clk 0:01:34]} 20. Bxc4 {[%clk 0:01:33.9]} 20... Be5 {[%clk
0:01:33.5]} 21. Rd1 {[%clk 0:01:27.7]} 21... Kf8 {[%clk 0:01:30.2]} 22. a4
{[%clk 0:01:23.9]} 22... Ke7 {[%clk 0:01:28.4]} 23. Rd3 {[%clk 0:01:18.9]} 23...
Kf8 {[%clk 0:01:18]} 24. e3 {[%clk 0:01:17.3]} 24... Ke7 {[%clk 0:01:15.3]} 25.
f4 {[%clk 0:01:11.5]} 25... Bc7 {[%clk 0:01:14.7]} 26. Nb5 {[%clk 0:00:47.4]}
26... Bd8 {[%clk 0:01:11.9]} 27. Kg2 {[%clk 0:00:46.3]} 27... Ne8 {[%clk
0:01:09.6]} 28. Kf3 {[%clk 0:00:44.1]} 28... g6 {[%clk 0:01:02.7]} 29. e4 {[%clk
0:00:39.1]} 29... Rb7 {[%clk 0:01:00.3]} 30. e5 {[%clk 0:00:37.4]} 30... Rd7
{[%clk 0:00:58.4]} 31. Rxd7+ {[%clk 0:00:35.8]} 31... Kxd7 {[%clk 0:00:59.1]}
32. Bxf7 {[%clk 0:00:36.1]} 32... Nc7 {[%clk 0:00:56.3]} 33. Nxc7 {[%clk
0:00:35.7]} 33... Bxc7 {[%clk 0:00:56.1]} 34. Ke4 {[%clk 0:00:33.7]} 34... Ke7
{[%clk 0:00:56.2]} 35. Bg8 {[%clk 0:00:31.6]} 35... Kf8 {[%clk 0:00:56.3]} 36.
Bc4 {[%clk 0:00:29.6]} 36... Ke7 {[%clk 0:00:56.2]} 37. Kd5 {[%clk 0:00:29.6]}
37... Bd8 {[%clk 0:00:55.4]} 38. g4 {[%clk 0:00:29.2]} 38... Kd7 {[%clk
0:00:55]} 39. f5 {[%clk 0:00:27.2]} 39... gxf5 {[%clk 0:00:54]} 40. gxf5 {[%clk
0:00:28.1]} 40... Bh4 {[%clk 0:00:53.7]} 41. f6 {[%clk 0:00:27.3]} 41... Bg5
{[%clk 0:00:45.2]} 42. b3 {[%clk 0:00:25.5]} 42... Ke8 {[%clk 0:00:27.2]} 43.
Ke6 {[%clk 0:00:24.1]} 43... Bf4 {[%clk 0:00:27.5]} 44. h3 {[%clk 0:00:22.2]}
44... h5 {[%clk 0:00:26.4]} 45. Kf5 {[%clk 0:00:20.7]} 45... Bg3 {[%clk
0:00:25.1]} 46. e6 {[%clk 0:00:20.2]} 46... Bd6 {[%clk 0:00:25.7]} 47. Bb5+
{[%clk 0:00:19.5]} 47... Kf8 {[%clk 0:00:24.9]} 48. e7+ {[%clk 0:00:19.6]} 48...
Bxe7 {[%clk 0:00:25.4]} 49. fxe7+ {[%clk 0:00:20.5]} 49... Kxe7 {[%clk
0:00:25.9]} 50. Kg5 {[%clk 0:00:20.8]} 1-0

[Event "Late-Titled-Tuesday-Blitz-March-12-2024"]
[Site "Chess.com"]
[Date "2024.03.12"]
[Round "6"]
[White "Lennis93"]
[Black "Mikayel99"]
[Result "1-0"]
[WhiteElo "2700"]
[BlackElo "2559"]
[TimeControl "180+1"]
[EndTime "15:05:45 PDT"]
[Termination "Lennis93 won by checkmate"]

1. d4 {[%clk 0:02:55.7]} 1... d5 {[%clk 0:02:51.9]} 2. Nf3 {[%clk 0:02:54.7]}
2... Nf6 {[%clk 0:02:48.3]} 3. g3 {[%clk 0:02:55]} 3... c5 {[%clk 0:02:47.6]} 4.
Bg2 {[%clk 0:02:55.3]} 4... Nc6 {[%clk 0:02:46.1]} 5. O-O {[%clk 0:02:55.6]}
5... e6 {[%clk 0:02:46.3]} 6. c4 {[%clk 0:02:54.3]} 6... cxd4 {[%clk 0:02:46.2]}
7. Nxd4 {[%clk 0:02:52.8]} 7... Nxd4 {[%clk 0:02:46.3]} 8. Qxd4 {[%clk
0:02:52.4]} 8... Qb6 {[%clk 0:02:38.7]} 9. Qh4 {[%clk 0:02:36.2]} 9... Be7
{[%clk 0:02:32.8]} 10. cxd5 {[%clk 0:02:31.9]} 10... Nxd5 {[%clk 0:02:27.5]} 11.
Qc4 {[%clk 0:02:28.3]} 11... O-O {[%clk 0:02:23.3]} 12. Rd1 {[%clk 0:02:17.9]}
12... Bd7 {[%clk 0:02:19.1]} 13. e4 {[%clk 0:02:12.8]} 13... Bb5 {[%clk
0:02:13.5]} 14. Qb3 {[%clk 0:02:12.3]} 14... Nf6 {[%clk 0:02:04]} 15. Nc3 {[%clk
0:02:11.6]} 15... Bc6 {[%clk 0:02:00.6]} 16. Qxb6 {[%clk 0:01:58.4]} 16... axb6
{[%clk 0:02:01.5]} 17. Be3 {[%clk 0:01:58.4]} 17... b5 {[%clk 0:01:59.8]} 18. e5
{[%clk 0:01:55.7]} 18... Ng4 {[%clk 0:01:56.8]} 19. Bd4 {[%clk 0:01:51.6]} 19...
b4 {[%clk 0:01:50.2]} 20. Ne4 {[%clk 0:01:50.8]} 20... Rfd8 {[%clk 0:01:44.7]}
21. h3 {[%clk 0:01:50.9]} 21... Nh6 {[%clk 0:01:41.6]} 22. g4 {[%clk 0:01:46.8]}
22... b3 {[%clk 0:01:28.1]} 23. a3 {[%clk 0:01:40.8]} 23... Kf8 {[%clk
0:01:12.6]} 24. Bb6 {[%clk 0:00:50.8]} 24... Rd5 {[%clk 0:01:01.4]} 25. f4
{[%clk 0:00:45.5]} 25... Ng8 {[%clk 0:00:52.1]} 26. Nd6 {[%clk 0:00:43.8]} 26...
Rxd1+ {[%clk 0:00:46.7]} 27. Rxd1 {[%clk 0:00:44.7]} 27... Bxd6 {[%clk
0:00:45.8]} 28. exd6 {[%clk 0:00:37.5]} 28... Bd7 {[%clk 0:00:36]} 29. Bc7
{[%clk 0:00:26.3]} 29... Ra7 {[%clk 0:00:29.5]} 30. g5 {[%clk 0:00:25.1]} 30...
f6 {[%clk 0:00:24.1]} 31. Rd3 {[%clk 0:00:24.3]} 31... e5 {[%clk 0:00:21.4]} 32.
fxe5 {[%clk 0:00:22.4]} 32... fxe5 {[%clk 0:00:22.3]} 33. Rxb3 {[%clk
0:00:21.1]} 33... h6 {[%clk 0:00:22.9]} 34. Rxb7 {[%clk 0:00:18.8]} 34... Rxb7
{[%clk 0:00:22.8]} 35. Bxb7 {[%clk 0:00:19.6]} 35... hxg5 {[%clk 0:00:23.5]} 36.
b3 {[%clk 0:00:17.8]} 36... Nf6 {[%clk 0:00:23.6]} 37. a4 {[%clk 0:00:18.2]}
37... Be6 {[%clk 0:00:22.9]} 38. b4 {[%clk 0:00:16.9]} 38... e4 {[%clk
0:00:19.3]} 39. a5 {[%clk 0:00:16.6]} 39... e3 {[%clk 0:00:19.8]} 40. a6 {[%clk
0:00:15.6]} 40... Bxh3 {[%clk 0:00:10.3]} 41. a7 {[%clk 0:00:15.3]} 41... Ng4
{[%clk 0:00:10.7]} 42. a8=Q+ {[%clk 0:00:14.8]} 42... Kf7 {[%clk 0:00:11.4]} 43.
Bd5+ {[%clk 0:00:14]} 43... Kg6 {[%clk 0:00:11.5]} 44. Qe8+ {[%clk 0:00:13.3]}
44... Kh7 {[%clk 0:00:11.7]} 45. Be4+ {[%clk 0:00:12.8]} 45... Kh6 {[%clk
0:00:11.5]} 46. Qh8# {[%clk 0:00:10.3]} 1-0